Workbook

Sheet Parameters
A1: Relative Strength Index, MACD, Average True Range, EMA & Historical Volatility
A2: This spreadsheet calculates RSI, MACD, EMA, ATR and historical volatility from data downloaded from Yahoo
A3: Enter the ticker symbol and other parameters, and click the button
A5: Stock Ticker | B5: XOM
A6: Start Date | B6: 2013-01-03
A7: End Date | B7: 2013-09-02
A8: Days in Year | B8: 252
A9: Volatility Window | B9: 14
A10: RSI Window | B10: 14
A11: ATR Window | B11: 14

Sheet Data
A1: Date | B1: Open | C1: High | D1: Low | E1: Close | F1: Volume | G1: Adj Close | H1: Daily Returns | I1: Volatility | J1: Change | K1: Gain | L1: Loss | M1: Av Gain | N1: Av Loss | O1: RS | P1: RSI | Q1: True Range | R1: Average True Range | S1: 12 Day EMA | T1: 26 Day EMA | U1: MACD | V1: Signal | W1: Histogram
A2: 2013-01-03 | B2: 88.46 | C2: 88.89 | D2: 88.16 | E2: 88.55 | F2: 13268200 | G2: 84.43 | Q2: =ABS(C2-D2) -> 0.73
A3: 2013-01-04 | B3: 88.5 | C3: 89.09 | D3: 88.37 | E3: 88.96 | F3: 11427900 | G3: 84.82 | H3: =LN(E3/E2) -> 0.004619466273 | J3: =E3-E2 -> 0.41 | K3: =IF(J3>0,J3,0) -> 0.41 | L3: =IF(J3<0,ABS(J3),0) -> 0 | Q3: =MAX(ABS(D3-E2),ABS(C3-E2),ABS(C3-D3)) -> 0.72
A4: 2013-01-07 | B4: 88.31 | C4: 88.49 | D4: 87.57 | E4: 87.93 | F4: 11799800 | G4: 83.83 | H4: -0.01164578711 | J4: -1.03 | K4: 0 | L4: 1.03 | Q4: 1.39
A5: 2013-01-08 | B5: 87.82 | C5: 88.48 | D5: 87.29 | E5: 88.48 | F5: 14226400 | G5: 84.36 | H5: 0.006235494383 | J5: 0.55 | K5: 0.55 | L5: 0 | Q5: 1.19
A6: 2013-01-09 | B6: 88.4 | C6: 88.54 | D6: 87.75 | E6: 88.14 | F6: 10892200 | G6: 84.03 | H6: -0.00385007836 | J6: -0.34 | K6: 0 | L6: 0.34 | Q6: 0.79
A7: 2013-01-10 | B7: 88.75 | C7: 89.48 | D7: 88.37 | E7: 89.1 | F7: 13099600 | G7: 84.95 | H7: 0.01083287506 | J7: 0.96 | K7: 0.96 | L7: 0 | Q7: 1.34
A8: 2013-01-11 | B8: 88.97 | C8: 89.71 | D8: 88.86 | E8: 89.61 | F8: 11645600 | G8: 85.44 | H8: 0.005707586419 | J8: 0.51 | K8: 0.51 | L8: 0 | Q8: 0.85
A9: 2013-01-14 | B9: 89.46 | C9: 89.75 | D9: 89.32 | E9: 89.58 | F9: 9606700 | G9: 85.41 | H9: -0.000334840117 | J9: -0.03 | K9: 0 | L9: 0.03 | Q9: 0.43
A10: 2013-01-15 | B10: 89.18 | C10: 89.61 | D10: 89 | E10: 89.53 | F10: 9195400 | G10: 85.36 | H10: -0.0005583161331 | J10: -0.05 | K10: 0 | L10: 0.05 | Q10: 0.61
A11: 2013-01-16 | B11: 89.16 | C11: 89.48 | D11: 89.07 | E11: 89.47 | F11: 9645000 | G11: 85.3 | H11: -0.0006703910866 | J11: -0.06 | K11: 0 | L11: 0.06 | Q11: 0.46
A12: 2013-01-17 | B12: 89.76 | C12: 90.94 | D12: 89.6 | E12: 90.2 | F12: 13400300 | G12: 86 | H12: 0.008126053509 | J12: 0.73 | K12: 0.73 | L12: 0 | Q12: 1.47
A13: 2013-01-18 | B13: 90.09 | C13: 90.83 | D13: 89.83 | E13: 90.8 | F13: 17196000 | G13: 86.57 | H13: 0.006629858539 | J13: 0.6 | K13: 0.6 | L13: 0 | Q13: 1 | S13: =AVERAGE(E2:E13) -> 89.19583333
A14: 2013-01-22 | B14: 90.27 | C14: 90.94 | D14: 90.21 | E14: 90.92 | F14: 11897500 | G14: 86.69 | H14: 0.001320713377 | J14: 0.12 | K14: 0.12 | L14: 0 | Q14: 0.73 | S14: =E14*(2/(12+1)) + S13 * (1-(2/(12+1))) -> 89.46108974
A15: 2013-01-23 | B15: 90.5 | C15: 90.88 | D15: 90.42 | E15: 90.7 | F15: 10906800 | G15: 86.48 | H15: -0.002422641863 | J15: -0.22 | K15: 0 | L15: 0.22 | Q15: 0.5 | R15: =AVERAGE(Q2:Q15) -> 0.8721428571 | S15: 89.65169132
A16: 2013-01-24 | B16: 90.88 | C16: 91.72 | D16: 90.75 | E16: 91.35 | F16: 11100000 | G16: 87.1 | H16: 0.007140925703 | J16: 0.65 | K16: 0.65 | L16: 0 | M16: =AVERAGE(K3:K16) -> 0.3235714286 | N16: =AVERAGE(L3:L16) -> 0.1235714286 | O16: =M16/N16 -> 2.61849711 | P16: =IF(N16=0,100,100-(100/(1+O16))) -> 72.36421725 | Q16: 1.02 | R16: =(R15*13+Q16)/14 -> 0.8827040816 | S16: 89.91296958
A17: 2013-01-25 | B17: 91.57 | C17: 91.8 | D17: 91.13 | E17: 91.73 | F17: 11090600 | G17: 87.46 | H17: 0.004151196698 | J17: 0.38 | K17: 0.38 | L17: 0 | M17: =(M16*13+K17 )/14 -> 0.3276020408 | N17: =(N16*13+L17 )/14 -> 0.114744898 | O17: 2.855046687 | P17: 74.05997693 | Q17: 0.67 | R17: 0.8675109329 | S17: 90.19251272
A18: 2013-01-28 | B18: 91.67 | C18: 91.67 | D18: 90.77 | E18: 91.11 | F18: 11617500 | G18: 86.87 | H18: -0.006781911796 | J18: -0.62 | K18: 0 | L18: 0.62 | M18: 0.304201895 | N18: 0.1508345481 | O18: 2.016791901 | P18: 66.85220483 | Q18: 0.96 | R18: 0.8741172949 | S18: 90.33366461
A19: 2013-01-29 | B19: 91.21 | C19: 91.93 | D19: 91.2 | E19: 91.76 | F19: 11700600 | G19: 87.49 | H19: 0.007108905095 | J19: 0.65 | K19: 0.65 | L19: 0 | M19: 0.3289017597 | N19: 0.1400606518 | O19: 2.348280944 | P19: 70.13392793 | Q19: 0.82 | R19: 0.8702517738 | S19: 90.55310082
A20: 2013-01-30 | B20: 91.17 | C20: 91.72 | D20: 90.38 | E20: 90.67 | F20: 15645400 | G20: 86.45 | H20: -0.01194993116 | J20: -1.09 | K20: 0 | L20: 1.09 | M20: 0.3054087768 | N20: 0.2079134624 | O20: 1.468922567 | P20: 59.4965021 | Q20: 1.38 | R20: 0.9066623614 | S20: 90.57108531
A21: 2013-01-31 | B21: 90.69 | C21: 91.21 | D21: 89.74 | E21: 89.97 | F21: 15991500 | G21: 85.78 | H21: -0.007750260229 | J21: -0.7 | K21: 0 | L21: 0.7 | M21: 0.2835938642 | N21: 0.2430625008 | O21: 1.166752845 | P21: 53.84798952 | Q21: 1.47 | R21: 0.9469007642 | S21: 90.47861065
A22: 2013-02-01 | B22: 90.44 | C22: 90.5 | D22: 89.36 | E22: 90.04 | F22: 15699200 | G22: 85.85 | H22: 0.0007777346095 | J22: 0.07 | K22: 0.07 | L22: 0 | M22: 0.2683371596 | N22: 0.2257008936 | O22: 1.188906058 | P22: 54.31507915 | Q22: 1.14 | R22: 0.9606935667 | S22: 90.41113209
A23: 2013-02-04 | B23: 89.41 | C23: 89.62 | D23: 88.84 | E23: 89.15 | F23: 13347300 | G23: 85 | H23: -0.009933671729 | I23: =STDEV(H4:H23)*SQRT(252) -> 0.1107275564 | J23: -0.89 | K23: 0 | L23: 0.89 | M23: 0.2491702197 | N23: 0.2731508298 | O23: 0.9122074418 | P23: 47.70441856 | Q23: 1.2 | R23: 0.9777868834 | S23: 90.21711177
A24: 2013-02-05 | B24: 89.88 | C24: 90.19 | D24: 89.42 | E24: 89.74 | F24: 11679700 | G24: 85.56 | H24: 0.006596256239 | I24: =STDEV(H5:H24)*SQRT(252) -> 0.1037620941 | J24: 0.59 | K24: 0.59 | L24: 0 | M24: 0.273515204 | N24: 0.2536400562 | O24: 1.078359657 | P24: 51.88513226 | Q24: 1.04 | R24: 0.9822306774 | S24: 90.14370996
A25: 2013-02-06 | B25: 89.37 | C25: 89.89 | D25: 89.16 | E25: 89.79 | F25: 11768700 | G25: 85.61 | H25: 0.0005570099849 | I25: 0.1019169823 | J25: 0.05 | K25: 0.05 | L25: 0 | M25: 0.2575498323 | N25: 0.2355229093 | O25: 1.093523483 | P25: 52.23363827 | Q25: 0.73 | R25: 0.9642142005 | S25: 90.08929304
A26: 2013-02-07 | B26: 89.21 | C26: 89.22 | D26: 87.61 | E26: 88.25 | F26: 13463300 | G26: 84.68 | H26: -0.01729991472 | I26: 0.1195916997 | J26: -1.54 | K26: 0 | L26: 1.54 | M26: 0.2391534157 | N26: 0.3286998444 | O26: 0.7275738634 | P26: 42.11535488 | Q26: 2.18 | R26: 1.051056043 | S26: 89.80632488
A27: 2013-02-08 | B27: 88.5 | C27: 88.8 | D27: 88.11 | E27: 88.61 | F27: 11412300 | G27: 85.02 | H27: 0.004071022246 | I27: 0.11378227 | J27: 0.36 | K27: 0.36 | L27: 0 | M27: 0.2477853145 | N27: 0.3052212841 | O27: 0.8118218731 | P27: 44.80693633 | Q27: 0.69 | R27: 1.025266326 | S27: 89.6222749 | T27: =AVERAGE(E2:E27) -> 89.77461538 | U27: =S27 - T27 -> -0.1523404862
A28: 2013-02-11 | B28: 88.35 | C28: 88.51 | D28: 87.97 | E28: 88.28 | F28: 8764700 | G28: 84.71 | H28: -0.003731136671 | I28: 0.1121198565 | J28: -0.33 | K28: 0 | L28: 0.33 | M28: 0.2300863635 | N28: 0.3069911924 | O28: 0.7494884845 | P28: 42.84043543 | Q28: 0.64 | R28: 0.9977473026 | S28: 89.41577107 | T28: =E28*(2/(26+1)) + T27 * (1-(2/(26+1))) -> 89.66390313 | U28: -0.248132066
A29: 2013-02-12 | B29: 88.25 | C29: 88.62 | D29: 87.92 | E29: 88.46 | F29: 9752100 | G29: 84.88 | H29: 0.002036891052 | I29: 0.1125509257 | J29: 0.18 | K29: 0.18 | L29: 0 | M29: 0.2265087661 | N29: 0.28506325 | O29: 0.7945912568 | P29: 44.27700479 | Q29: 0.7 | R29: 0.9764796382 | S29: 89.26872937 | T29: 89.57472512 | U29: -0.3059957588
A30: 2013-02-13 | B30: 88.46 | C30: 88.77 | D30: 88.24 | E30: 88.67 | F30: 8940300 | G30: 85.08 | H30: 0.002371140952 | I30: 0.1130545862 | J30: 0.21 | K30: 0.21 | L30: 0 | M30: 0.2253295685 | N30: 0.2647015893 | O30: 0.8512588425 | P30: 45.98270231 | Q30: 0.53 | R30: 0.9445882354 | S30: 89.17661716 | T30: 89.50770845 | U30: -0.331091293
A31: 2013-02-14 | B31: 88.34 | C31: 88.81 | D31: 88.06 | E31: 88.52 | F31: 13238900 | G31: 84.94 | H31: -0.001693098209 | I31: 0.1131353725 | J31: -0.15 | K31: 0 | L31: 0.15 | M31: 0.2092345994 | N31: 0.2565086187 | O31: 0.8157020238 | P31: 44.92488377 | Q31: 0.75 | R31: 0.9306890758 | S31: 89.07559913 | T31: 89.43454486 | U31: -0.3589457281
A32: 2013-02-15 | B32: 88.57 | C32: 88.61 | D32: 87.8 | E32: 88.36 | F32: 15696900 | G32: 84.78 | H32: -0.001809136631 | I32: 0.108448587 | J32: -0.16 | K32: 0 | L32: 0.16 | M32: 0.1942892708 | N32: 0.2496151459 | O32: 0.7783552962 | P32: 43.76826711 | Q32: 0.81 | R32: 0.9220684275 | S32: 88.96550696 | T32: 89.35494894 | U32: -0.3894419866
A33: 2013-02-19 | B33: 88.54 | C33: 89.41 | D33: 88.38 | E33: 89.32 | F33: 12158900 | G33: 85.7 | H33: 0.01080604842 | I33: 0.1132671784 | J33: 0.96 | K33: 0.96 | L33: 0 | M33: 0.2489828943 | N33: 0.2317854926 | O33: 1.074195333 | P33: 51.78853292 | Q33: 1.05 | R33: 0.931206397 | S33: 89.02004435 | T33: 89.35236013 | U33: -0.3323157848
A34: 2013-02-20 | B34: 89.14 | C34: 89.82 | D34: 88.9 | E34: 88.97 | F34: 13936400 | G34: 85.37 | H34: -0.003926192715 | I34: 0.113481935 | J34: -0.35 | K34: 0 | L34: 0.35 | M34: 0.2311984019 | N34: 0.240229386 | O34: 0.9624068301 | P34: 49.04216676 | Q34: 0.92 | R34: 0.93040594 | S34: 89.01234522 | T34: 89.32403716 | U34: -0.3116919425
A35: 2013-02-21 | B35: 88.79 | C35: 89.02 | D35: 88.36 | E35: 88.59 | F35: 10939800 | G35: 85 | H35: =LN(E35/E34) -> -0.004280249833 | I35: 0.113963103 | J35: =E35-E34 -> -0.38 | K35: =IF(J35>0,J35,0) -> 0 | L35: =IF(J35<0,ABS(J35),0) -> 0.38 | M35: 0.2146842303 | N35: 0.2502130013 | O35: 0.8580058958 | P35: 46.17885755 | Q35: =MAX(ABS(D35-E34),ABS(C35-E34),ABS(C35-D35)) -> 0.66 | R35: 0.91109123 | S35: 88.94736903 | T35: 89.26966404 | U35: -0.3222950069 | V35: =AVERAGE(U27:U35) -> -0.3058055614 | W35: =U35 - V35 -> -0.01648944544
A36: 2013-02-22 | B36: 89.02 | C36: 89.28 | D36: 88.4 | E36: 89.2 | F36: 10260200 | G36: 85.59 | H36: 0.006862055162 | I36: 0.1136971338 | J36: 0.61 | K36: 0.61 | L36: 0 | M36: 0.242921071 | N36: 0.2323406441 | O36: 1.045538425 | P36: 51.11311585 | Q36: 0.88 | R36: 0.9088704279 | S36: 88.98623533 | T36: 89.26450374 | U36: -0.2782684048 | V36: =U36*(2/(9+1)) + V35 * (1-(2/(9+1))) -> -0.3002981301 | W36: 0.0220297253
A37: 2013-02-25 | B37: 89.88 | C37: 90.19 | D37: 87.7 | E37: 87.7 | F37: 15302900 | G37: 84.15 | H37: -0.01695914021 | I37: 0.1247026009 | J37: -1.5 | K37: 0 | L37: 1.5 | M37: 0.2255695659 | N37: 0.3228877409 | O37: 0.6986005889 | P37: 41.12800816 | Q37: 2.49 | R37: 1.021808254 | S37: 88.78835297 | T37: 89.14861457 | U37: -0.360261598 | V37: -0.3122908237 | W37: -0.04797077432
A38: 2013-02-26 | B38: 88.5 | C38: 88.98 | D38: 87.76 | E38: 88.51 | F38: 15073200 | G38: 84.93 | H38: 0.009193640603 | I38: 0.1297861882 | J38: 0.81 | K38: 0.81 | L38: 0 | M38: 0.2673145969 | N38: 0.2998243308 | O38: 0.8915707281 | P38: 47.1338827 | Q38: 1.28 | R38: 1.040250522 | S38: 88.74552944 | T38: 89.10130979 | U38: -0.3557803494 | V38: -0.3209887288 | W38: -0.03479162057
A39: 2013-02-27 | B39: 88.5 | C39: 89.65 | D39: 88.31 | E39: 89.53 | F39: 11195200 | G39: 85.91 | H39: 0.01145822467 | I39: 0.1344246253 | J39: 1.02 | K39: 1.02 | L39: 0 | M39: 0.32107784 | N39: 0.2784083072 | O39: 1.153262427 | P39: 53.55884227 | Q39: 1.34 | R39: 1.061661199 | S39: 88.86621722 | T39: 89.13306462 | U39: -0.2668474013 | V39: -0.3101604633 | W39: 0.04331306198
A40: 2013-02-28 | B40: 89.67 | C40: 89.81 | D40: 89.03 | E40: 89.55 | F40: 14552000 | G40: 85.92 | H40: 0.0002233638607 | I40: 0.1283573327 | J40: 0.02 | K40: 0.02 | L40: 0 | M40: 0.29957228 | N40: 0.2585219996 | O40: 1.158788345 | P40: 53.67771916 | Q40: 0.78 | R40: 1.041542542 | S40: 88.97141457 | T40: 89.16394872 | U40: -0.1925341526 | V40: -0.2866352012 | W40: 0.0941010486
A41: 2013-03-01 | B41: 89.07 | C41: 89.68 | D41: 88.92 | E41: 89.43 | F41: 11301600 | G41: 85.81 | H41: -0.001340932149 | I41: 0.1256232426 | J41: -0.12 | K41: 0 | L41: 0.12 | M41: 0.27817426 | N41: 0.248627571 | O41: 1.118839149 | P41: 52.8043457 | Q41: 0.76 | R41: 1.02143236 | S41: 89.04196617 | T41: 89.18365622 | U41: -0.1416900499 | V41: -0.2576461709 | W41: 0.115956121
A42: 2013-03-04 | B42: 89.13 | C42: 89.25 | D42: 88.46 | E42: 88.95 | F42: 10994000 | G42: 85.35 | H42: -0.005381782246 | I42: 0.1268187064 | J42: -0.48 | K42: 0 | L42: 0.48 | M42: 0.25830467 | N42: 0.2651541731 | O42: 0.9741678474 | P42: 49.34574579 | Q42: 0.97 | R42: 1.01775862 | S42: 89.02781753 | T42: 89.16634836 | U42: -0.1385308237 | V42: -0.2338231015 | W42: 0.09529227781
A43: 2013-03-05 | B43: 89.48 | C43: 90.15 | D43: 89.29 | E43: 89.61 | F43: 13072600 | G43: 85.98 | H43: 0.007392506784 | I43: 0.1248192068 | J43: 0.66 | K43: 0.66 | L43: 0 | M43: 0.2869971936 | N43: 0.2462145893 | O43: 1.165638456 | P43: 53.82424072 | Q43: 1.2 | R43: 1.030775862 | S43: 89.11738407 | T43: 89.19921144 | U43: -0.0818273749 | V43: -0.2034239562 | W43: 0.1215965813
A44: 2013-03-06 | B44: 89.6 | C44: 89.95 | D44: 89.05 | E44: 89.56 | F44: 13234400 | G44: 85.93 | H44: -0.0005581291656 | I44: 0.1225633302 | J44: -0.05 | K44: 0 | L44: 0.05 | M44: 0.266497394 | N44: 0.2321992615 | O44: 1.147709912 | P44: 53.43877708 | Q44: 0.9 | R44: 1.021434729 | S44: 89.18547882 | T44: 89.22593652 | U44: -0.04045769424 | V44: -0.1708307038 | W44: 0.1303730095
A45: 2013-03-07 | B45: 89.63 | C45: 89.76 | D45: 88.68 | E45: 88.71 | F45: 12905300 | G45: 85.12 | H45: -0.009536169198 | I45: 0.1270013836 | J45: -0.85 | K45: 0 | L45: 0.85 | M45: 0.2474618659 | N45: 0.2763278857 | O45: 0.8955370729 | P45: 47.24450319 | Q45: 1.08 | R45: 1.025617962 | S45: 89.11232824 | T45: 89.187719 | U45: -0.07539076273 | V45: -0.1517427156 | W45: 0.07635195284
A46: 2013-03-08 | B46: 89.01 | C46: 89.23 | D46: 88.35 | E46: 88.97 | F46: 11896300 | G46: 85.37 | H46: 0.002926611724 | I46: 0.1110260508 | J46: 0.26 | K46: 0.26 | L46: 0 | M46: 0.2483574469 | N46: 0.2565901795 | O46: 0.9679148569 | P46: 49.18479341 | Q46: 0.88 | R46: 1.015216679 | S46: =E46*(2/(12+1)) + S45 * (1-(2/(12+1))) -> 89.09043158 | T46: 89.17159167 | U46: -0.0811600812 | V46: -0.1376261887 | W46: 0.05646610749
A47: 2013-03-11 | B47: 89.01 | C47: 89.55 | D47: 88.54 | E47: 89.16 | F47: 12454800 | G47: 85.55 | H47: 0.002133274261 | I47: 0.1103889603 | J47: 0.19 | K47: 0.19 | L47: 0 | M47: 0.2441890578 | N47: 0.2382623096 | O47: 1.024874888 | P47: 50.61423271 | Q47: 1.01 | R47: 1.014844059 | S47: 89.10113442 | T47: 89.17073302 | U47: -0.06959860615 | V47: -0.1240206722 | W47: 0.05442206604
A48: 2013-03-12 | B48: 89.45 | C48: 89.91 | D48: 89.01 | E48: 89.16 | F48: 11470000 | G48: 85.55 | H48: 0 | I48: 0.1093673978 | J48: 0 | K48: 0 | L48: 0 | M48: 0.2267469823 | N48: 0.2212435732 | O48: =M48/N48 -> 1.024874888 | P48: =IF(N48=0,100,100-(100/(1+O48))) -> 50.61423271 | Q48: 0.9 | R48: =(R47*13+Q48)/14 -> 1.006640912 | S48: 89.11019066 | T48: 89.16993799 | U48: -0.05974732391 | V48: -0.1111660025 | W48: 0.05141867862
A49: 2013-03-13 | B49: 89.02 | C49: 89.5 | D49: 88.83 | E49: 89.26 | F49: 10539900 | G49: 85.65 | H49: 0.001120950683 | I49: 0.1092444911 | J49: 0.1 | K49: 0.1 | L49: 0 | M49: =(M48*13+K49 )/14 -> 0.2176936264 | N49: =(N48*13+L49 )/14 -> 0.2054404608 | O49: 1.05964339 | P49: 51.44790575 | Q49: 0.67 | R49: 0.9825951329 | S49: 89.13323825 | T49: 89.17660925 | U49: -0.04337099368 | V49: -0.09760700076 | W49: 0.05423600708
A50: 2013-03-14 | B50: 89.41 | C50: 89.91 | D50: 89.41 | E50: 89.83 | F50: 13775500 | G50: 86.19 | H50: 0.00636553604 | I50: 0.1110807633 | J50: 0.57 | K50: 0.57 | L50: 0 | M50: 0.2428583674 | N50: 0.1907661422 | O50: 1.273068505 | P50: 56.00660526 | Q50: 0.65 | R50: 0.9588383377 | S50: 89.24043237 | T50: 89.22500856 | U50: 0.01542380629 | V50: -0.07500083935 | W50: 0.09042464564
A51: 2013-03-15 | B51: 89.2 | C51: 89.61 | D51: 88.79 | E51: 89.37 | F51: 29240100 | G51: 85.75 | H51: -0.005133939848 | I51: 0.1127029796 | J51: -0.46 | K51: 0 | L51: 0.46 | M51: 0.2255113411 | N51: 0.209997132 | O51: 1.073878195 | P51: 51.78116042 | Q51: 1.04 | R51: 0.9646355993 | S51: 89.26036585 | T51: 89.23574867 | U51: 0.02461718169 | V51: -0.05507723514 | W51: 0.07969441683
A52: 2013-03-18 | B52: 88.74 | C52: 89.39 | D52: 88.55 | E52: 88.77 | F52: 11553700 | G52: 85.18 | H52: -0.006736300313 | I52: 0.1153549136 | J52: -0.6 | K52: 0 | L52: 0.6 | M52: 0.2094033882 | N52: 0.2378544797 | O52: 0.8803844621 | P52: 46.81938613 | Q52: 0.84 | R52: 0.9557330565 | S52: 89.18492495 | T52: 89.20124877 | U52: -0.01632381687 | V52: -0.04732655149 | W52: 0.03100273462
A53: 2013-03-19 | B53: 88.89 | C53: 89.09 | D53: 88.02 | E53: 88.58 | F53: 11987900 | G53: 84.99 | H53: -0.002142656585 | I53: 0.1085689329 | J53: -0.19 | K53: 0 | L53: 0.19 | M53: 0.1944460033 | N53: 0.2344363026 | O53: 0.8294193397 | P53: 45.33784692 | Q53: 1.07 | R53: 0.963894981 | S53: 89.09185957 | T53: 89.15523034 | U53: -0.06337076654 | V53: -0.0505353945 | W53: -0.01283537204
A54: 2013-03-20 | B54: 88.95 | C54: 89.21 | D54: 88.3 | E54: 88.63 | F54: 11319000 | G54: 85.04 | H54: 0.0005643022553 | I54: 0.1078107663 | J54: 0.05 | K54: 0.05 | L54: 0 | M54: 0.1841284317 | N54: 0.2176908524 | O54: 0.845825305 | P54: 45.82369213 | Q54: 0.91 | R54: 0.9600453395 | S54: 89.02080425 | T54: 89.11632439 | U54: -0.09552013432 | V54: -0.05953234246 | W54: -0.03598779186
A55: 2013-03-21 | B55: 88.12 | C55: 88.64 | D55: 87.9 | E55: 88.17 | F55: 13447500 | G55: 84.6 | H55: -0.005203631651 | I55: 0.1083238453 | J55: -0.46 | K55: 0 | L55: 0.46 | M55: 0.1709764008 | N55: 0.2349986487 | O55: 0.7275633362 | P55: 42.11500215 | Q55: 0.74 | R55: 0.9443278153 | S55: 88.88991129 | T55: 89.04622628 | U55: -0.1563149936 | V55: -0.07888887269 | W55: -0.07742612091
A56: 2013-03-22 | B56: 88.4 | C56: 89.29 | D56: 88.32 | E56: 89.29 | F56: 10786600 | G56: 85.67 | H56: 0.01262273043 | I56: 0.1150525427 | J56: 1.12 | K56: 1.12 | L56: 0 | M56: 0.2387638008 | N56: 0.2182130309 | O56: 1.094177556 | P56: 52.24855708 | Q56: 1.12 | R56: 0.9568758284 | S56: 88.9514634 | T56: 89.0642836 | U56: -0.1128201968 | V56: -0.08567513751 | W56: -0.02714505929
A57: 2013-03-25 | B57: 89.5 | C57: 89.9 | D57: 88.66 | E57: 89.02 | F57: 12900800 | G57: 85.42 | H57: -0.003028435941 | I57: 0.09693684655 | J57: -0.27 | K57: 0 | L57: 0.27 | M57: 0.2217092436 | N57: 0.2219121001 | O57: 0.9990858697 | P57: 49.97713629 | Q57: 1.24 | R57: 0.9770989836 | S57: 88.96200749 | T57: 89.06100333 | U57: -0.0989958381 | V57: -0.08833927763 | W57: -0.01065656047
A58: 2013-03-26 | B58: 89.41 | C58: 90.3 | D58: 89.36 | E58: 90.13 | F58: 12329600 | G58: 86.48 | H58: 0.01239200898 | I58: 0.1012040961 | J58: 1.11 | K58: 1.11 | L58: 0 | M58: 0.2851585833 | N58: 0.2060612358 | O58: 1.383853601 | P58: 58.05111524 | Q58: 1.28 | R58: 0.9987347704 | S58: 89.14169865 | T58: 89.14018827 | U58: 0.001510378419 | V58: -0.07036934642 | W58: 0.07187972484
A59: 2013-03-27 | B59: 89.56 | C59: 90.74 | D59: 89.47 | E59: 90.58 | F59: 12350800 | G59: 86.91 | H59: 0.00498036556 | I59: 0.09464629421 | J59: 0.45 | K59: 0.45 | L59: 0 | M59: 0.2969329702 | N59: 0.1913425761 | O59: 1.551839513 | P59: 60.81258266 | Q59: 1.27 | R59: 1.018110858 | S59: 89.36297578 | T59: 89.24684099 | U59: =S59 - T59 -> 0.1161347888 | V59: -0.03306851938 | W59: 0.1492033081
A60: 2013-03-28 | B60: 90.64 | C60: 90.98 | D60: 89.99 | E60: 90.11 | F60: 17485200 | G60: 86.46 | H60: -0.005202291881 | I60: 0.0968534665 | J60: -0.47 | K60: 0 | L60: 0.47 | M60: 0.2757234723 | N60: 0.2112466778 | O60: 1.305220395 | P60: 56.62019987 | Q60: 0.99 | R60: 1.01610294 | S60: 89.47790258 | T60: =E60*(2/(26+1)) + T59 * (1-(2/(26+1))) -> 89.31077869 | U60: 0.1671238876 | V60: 0.006969962008 | W60: 0.1601539256
A61: 2013-04-01 | B61: 90.13 | C61: 90.99 | D61: 89.98 | E61: 90.77 | F61: 9414200 | G61: 87.1 | H61: 0.007297688292 | I61: 0.09971046309 | J61: 0.66 | K61: 0.66 | L61: 0 | M61: 0.3031717958 | N61: 0.1961576294 | O61: 1.545551894 | P61: 60.71578811 | Q61: 1.01 | R61: 1.015667016 | S61: 89.6766868 | T61: 89.41886916 | U61: 0.2578176386 | V61: 0.05713949734 | W61: 0.2006781413
A62: 2013-04-02 | B62: 90.59 | C62: 90.92 | D62: 90.28 | E62: 90.58 | F62: 9991800 | G62: 86.91 | H62: -0.00209539641 | I62: 0.09769479675 | J62: -0.19 | K62: 0 | L62: 0.19 | M62: 0.2815166675 | N62: 0.1957177988 | O62: 1.438380512 | P62: 58.98917354 | Q62: 0.64 | R62: 0.9888336573 | S62: 89.81565806 | T62: 89.50487885 | U62: 0.3107792084 | V62: 0.1078674396 | W62: 0.2029117689
A63: 2013-04-03 | B63: 90.65 | C63: 90.83 | D63: 89.86 | E63: 89.93 | F63: 12197100 | G63: 86.29 | H63: -0.007201848202 | I63: 0.09857797836 | J63: -0.65 | K63: 0 | L63: 0.65 | M63: 0.2614083341 | N63: 0.2281665274 | O63: 1.145690987 | P63: 53.39496666 | Q63: 0.97 | R63: 0.9874883961 | S63: 89.83324913 | T63: 89.53636931 | U63: 0.2968798205 | V63: 0.1456699158 | W63: 0.1512099048
A64: 2013-04-04 | B64: 90.1 | C64: 90.33 | D64: 89.22 | E64: 89.77 | F64: 11582000 | G64: 86.14 | H64: -0.001780746158 | I64: 0.09879440046 | J64: -0.16 | K64: 0 | L64: 0.16 | M64: 0.2427363102 | N64: 0.2232974897 | O64: 1.087053466 | P64: 52.08555908 | Q64: 1.11 | R64: 0.9962392249 | S64: 89.82351849 | T64: 89.55367529 | U64: 0.2698432081 | V64: 0.1705045742 | W64: 0.09933863392
A65: 2013-04-05 | B65: 88.61 | C65: 89.21 | D65: 88.4 | E65: 89.01 | F65: 12771600 | G65: 85.41 | H65: -0.008502120798 | I65: 0.09751421345 | J65: -0.76 | K65: 0 | L65: 0.76 | M65: 0.2253980024 | N65: 0.2616333833 | O65: 0.8615032206 | P65: 46.27997476 | Q65: 1.37 | R65: 1.022936423 | S65: 89.6983618 | T65: 89.51340304 | U65: 0.1849587602 | V65: 0.1733954114 | W65: 0.01156334875
A66: 2013-04-08 | B66: 89.11 | C66: 89.11 | D66: 88.15 | E66: 88.6 | F66: 11013900 | G66: 85.01 | H66: -0.00461686536 | I66: 0.09835737838 | J66: -0.41 | K66: 0 | L66: 0.41 | M66: 0.209298145 | N66: 0.2722309988 | O66: 0.7688255414 | P66: 43.46531206 | Q66: 0.96 | R66: 1.018440964 | S66: 89.52938306 | T66: 89.44574356 | U66: 0.08363950594 | V66: 0.1554442303 | W66: -0.07180472438
A67: 2013-04-09 | B67: 88.69 | C67: 89.34 | D67: 88.59 | E67: 88.77 | F67: 10753400 | G67: 85.18 | H67: =LN(E67/E66) -> 0.001916897469 | I67: 0.09829203183 | J67: =E67-E66 -> 0.17 | K67: =IF(J67>0,J67,0) -> 0.17 | L67: =IF(J67<0,ABS(J67),0) -> 0 | M67: 0.2064911347 | N67: 0.2527859275 | O67: 0.8168616693 | P67: 44.96003648 | Q67: =MAX(ABS(D67-E66),ABS(C67-E66),ABS(C67-D67)) -> 0.75 | R67: 0.9992666097 | S67: 89.4125549 | T67: 89.39568848 | U67: 0.01686642065 | V67: 0.1277286684 | W67: =U67 - V67 -> -0.1108622477
A68: 2013-04-10 | B68: 88.45 | C68: 89.16 | D68: 88.2 | E68: 88.68 | F68: 14823700 | G68: 85.09 | H68: -0.001014370332 | I68: 0.09832797395 | J68: -0.09 | K68: 0 | L68: 0.09 | M68: 0.1917417679 | N68: 0.2411583612 | O68: 0.7950865438 | P68: 44.29237947 | Q68: 0.96 | R68: 0.9964618519 | S68: 89.29985415 | T68: 89.34267452 | U68: -0.04282037176 | V68: =U68*(2/(9+1)) + V67 * (1-(2/(9+1))) -> 0.09361886036 | W68: -0.1364392321
A69: 2013-04-11 | B69: 88.95 | C69: 89.27 | D69: 88.23 | E69: 89.22 | F69: 14979900 | G69: 85.61 | H69: 0.006070844952 | I69: 0.1007954944 | J69: 0.54 | K69: 0.54 | L69: 0 | M69: 0.2166173559 | N69: 0.223932764 | O69: 0.9673321227 | P69: 49.16974168 | Q69: 1.04 | R69: 0.9995717196 | S69: 89.28756889 | T69: 89.33358752 | U69: -0.04601862369 | V69: 0.06569136355 | W69: -0.1117099872
A70: 2013-04-12 | B70: 88.88 | C70: 89.19 | D70: 88.41 | E70: 88.99 | F70: 11505100 | G70: 85.39 | H70: -0.002581225831 | I70: 0.09824599594 | J70: -0.23 | K70: 0 | L70: 0.23 | M70: 0.2011446876 | N70: 0.224366138 | O70: 0.8965019831 | P70: 47.27134435 | Q70: 0.81 | R70: 0.9860308825 | S70: 89.24178906 | T70: 89.30813659 | U70: -0.06634752621 | V70: 0.0392835856 | W70: -0.1056311118
A71: 2013-04-15 | B71: 88.29 | C71: 88.67 | D71: 86.27 | E71: 86.49 | F71: 19626200 | G71: 82.99 | H71: -0.02849520355 | I71: 0.1393522607 | J71: -2.5 | K71: 0 | L71: 2.5 | M71: 0.18677721 | N71: 0.3869114138 | O71: 0.4827389508 | P71: 32.55724485 | Q71: 2.72 | R71: 1.109885819 | S71: 88.8184369 | T71: 89.09938573 | U71: -0.2809488313 | V71: -0.02476289779 | W71: -0.2561859335
A72: 2013-04-16 | B72: 87.19 | C72: 87.23 | D72: 86.09 | E72: 86.61 | F72: 14578800 | G72: 83.1 | H72: 0.001386482025 | I72: 0.1383901626 | J72: 0.12 | K72: 0.12 | L72: 0 | M72: 0.1820074092 | N72: 0.3592748843 | O72: 0.5065965287 | P72: 33.62522872 | Q72: 1.14 | R72: 1.112036832 | S72: 88.47867738 | T72: 88.91498679 | U72: -0.4363094113 | V72: -0.1070722005 | W72: -0.3292372108
A73: 2013-04-17 | B73: 86.21 | C73: 86.38 | D73: 85.02 | E73: 86.08 | F73: 17341200 | G73: 82.59 | H73: -0.006138185929 | I73: 0.1394616032 | J73: -0.53 | K73: 0 | L73: 0.53 | M73: 0.16900688 | N73: 0.3714695354 | O73: 0.4549683457 | P73: 31.26998241 | Q73: 1.59 | R73: 1.146177059 | S73: 88.10965009 | T73: 88.70498777 | U73: -0.5953376787 | V73: -0.2047252961 | W73: -0.3906123826
A74: 2013-04-18 | B74: 86.28 | C74: 87.08 | D74: 85.78 | E74: 86.62 | F74: 14730400 | G74: 83.11 | H74: 0.006253639373 | I74: 0.1419808996 | J74: 0.54 | K74: 0.54 | L74: 0 | M74: 0.1955063886 | N74: 0.3449359972 | O74: 0.5667903327 | P74: 36.17525082 | Q74: 1.3 | R74: 1.157164412 | S74: 87.88047315 | T74: 88.55054423 | U74: -0.670071077 | V74: -0.2977944523 | W74: -0.3722766247
A75: 2013-04-19 | B75: 87.27 | C75: 87.49 | D75: 86.43 | E75: 87.45 | F75: 18393300 | G75: 83.91 | H75: 0.009536465678 | I75: 0.1459795613 | J75: 0.83 | K75: 0.83 | L75: 0 | M75: 0.2408273608 | N75: 0.3202977117 | O75: 0.7518859863 | P75: 42.91865979 | Q75: 1.06 | R75: 1.150224096 | S75: 87.81424651 | T75: 88.46902243 | U75: -0.654775921 | V75: -0.369190746 | W75: -0.285585175
A76: 2013-04-22 | B76: 87.61 | C76: 88.32 | D76: 87.29 | E76: 88.09 | F76: 11262000 | G76: 84.52 | H76: 0.007291817657 | I76: 0.1408018414 | J76: 0.64 | K76: 0.64 | L76: 0 | M76: 0.2693396922 | N76: 0.2974193037 | O76: 0.9055891426 | P76: 47.52279084 | Q76: 1.03 | R76: 1.141636661 | S76: 87.85667013 | T76: 88.4409467 | U76: -0.5842765717 | V76: -0.4122079112 | W76: -0.1720686605
A77: 2013-04-23 | B77: 88.39 | C77: 89.49 | D77: 87.94 | E77: 89.3 | F77: 15567700 | G77: 85.68 | H77: 0.01364246876 | I77: 0.1492879155 | J77: 1.21 | K77: 1.21 | L77: 0 | M77: 0.3365297142 | N77: 0.2761750677 | O77: 1.218537636 | P77: 54.92526322 | Q77: 1.55 | R77: 1.170805471 | S77: 88.07872088 | T77: 88.50458028 | U77: -0.4258593998 | V77: -0.4149382089 | W77: -0.01092119092
A78: 2013-04-24 | B78: 89.45 | C78: 89.89 | D78: 89.35 | E78: 89.43 | F78: 13028800 | G78: 85.81 | H78: 0.001454708476 | I78: 0.1422830256 | J78: 0.13 | K78: 0.13 | L78: 0 | M78: 0.3217775917 | N78: 0.2564482772 | O78: 1.254746553 | P78: 55.64911725 | Q78: 0.59 | R78: 1.129319366 | S78: =E78*(2/(12+1)) + S77 * (1-(2/(12+1))) -> 88.28660997 | T78: 88.57312988 | U78: -0.286519913 | V78: -0.3892545497 | W78: 0.1027346367
A79: 2013-04-25 | B79: 88.89 | C79: 88.9 | D79: 87.65 | E79: 88.07 | F79: 16328700 | G79: 84.5 | H79: -0.01532424354 | I79: 0.150155659 | J79: -1.36 | K79: 0 | L79: 1.36 | M79: 0.298793478 | N79: 0.3352734002 | O79: 0.8911935091 | P79: 47.12333798 | Q79: 1.78 | R79: 1.175796554 | S79: 88.25328536 | T79: 88.535861 | U79: -0.2825756437 | V79: -0.3679187685 | W79: 0.08534312481
A80: 2013-04-26 | B80: 87.81 | C80: 88.28 | D80: 87.6 | E80: 88 | F80: 10791800 | G80: 84.44 | H80: -0.0007951383392 | I80: 0.1494909227 | J80: -0.07 | K80: 0 | L80: 0.07 | M80: 0.2774510868 | N80: 0.3163253002 | O80: =M80/N80 -> 0.8771068472 | P80: =IF(N80=0,100,100-(100/(1+O80))) -> 46.7265275 | Q80: 0.68 | R80: =(R79*13+Q80)/14 -> 1.140382514 | S80: 88.21431838 | T80: 88.4961676 | U80: -0.2818492146 | V80: -0.3507048577 | W80: 0.06885564317
A81: 2013-04-29 | B81: 88.26 | C81: 88.83 | D81: 88.01 | E81: 88.21 | F81: 11093000 | G81: 84.64 | H81: 0.002383520792 | I81: 0.1467858714 | J81: 0.21 | K81: 0.21 | L81: 0 | M81: =(M80*13+K81 )/14 -> 0.272633152 | N81: =(N80*13+L81 )/14 -> 0.2937306359 | O81: 0.9281740434 | P81: 48.13746179 | Q81: 0.83 | R81: 1.118212335 | S81: 88.21365402 | T81: 88.47497 | U81: -0.2613159813 | V81: -0.3328270825 | W81: 0.07151110114
A82: 2013-04-30 | B82: 88.26 | C82: 88.99 | D82: 87.76 | E82: 88.99 | F82: 14572600 | G82: 85.39 | H82: 0.008803668598 | I82: 0.1511641161 | J82: 0.78 | K82: 0.78 | L82: 0 | M82: 0.3088736411 | N82: 0.2727498762 | O82: 1.132442828 | P82: 53.10542506 | Q82: 1.23 | R82: 1.126197168 | S82: 88.33309186 | T82: 88.51312037 | U82: -0.1800285082 | V82: -0.3022673676 | W82: 0.1222388594
A83: 2013-05-01 | B83: 88.52 | C83: 88.84 | D83: 87.48 | E83: 87.51 | F83: 11616500 | G83: 83.97 | H83: -0.01677093132 | I83: 0.1600238744 | J83: -1.48 | K83: 0 | L83: 1.48 | M83: 0.2868112382 | N83: 0.3589820279 | O83: 0.7989570951 | P83: 44.41223736 | Q83: 1.51 | R83: 1.153611656 | S83: 88.20646234 | T83: 88.43881516 | U83: -0.2323528126 | V83: -0.2882844566 | W83: 0.055931644
A84: 2013-05-02 | B84: 87.98 | C84: 88.84 | D84: 87.74 | E84: 88.63 | F84: 11330100 | G84: 85.04 | H84: 0.0127173282 | I84: 0.1676179759 | J84: 1.12 | K84: 1.12 | L84: 0 | M84: 0.3463247212 | N84: 0.3333404545 | O84: 1.038951968 | P84: 50.95519582 | Q84: 1.33 | R84: 1.166210823 | S84: 88.27162198 | T84: 88.452977 | U84: -0.1813550134 | V84: -0.266898568 | W84: 0.08554355459
A85: 2013-05-03 | B85: 89 | C85: 90.19 | D85: 88.92 | E85: 90.02 | F85: 13036600 | G85: 86.38 | H85: 0.01556146711 | I85: 0.1742777517 | J85: 1.39 | K85: 1.39 | L85: 0 | M85: 0.4208729554 | N85: 0.309530422 | O85: 1.359714346 | P85: 57.62198922 | Q85: 1.56 | R85: 1.194338622 | S85: 88.54060322 | T85: 88.56905277 | U85: -0.02844955796 | V85: -0.219208766 | W85: 0.190759208
A86: 2013-05-06 | B86: 90.25 | C86: 90.88 | D86: 89.93 | E86: 90.58 | F86: 10613400 | G86: 86.91 | H86: 0.006201570263 | I86: 0.17424295 | J86: 0.56 | K86: 0.56 | L86: 0 | M86: 0.4308106014 | N86: 0.2874211061 | O86: 1.498882971 | P86: 59.98211954 | Q86: 0.95 | R86: 1.176885863 | S86: 88.85435657 | T86: 88.71801183 | U86: 0.1363447397 | V86: -0.1480980648 | W86: 0.2844428045
A87: 2013-05-07 | B87: 90.62 | C87: 91.15 | D87: 90.14 | E87: 91.15 | F87: 11088900 | G87: 87.46 | H87: 0.006273062997 | I87: 0.1751956436 | J87: 0.57 | K87: 0.57 | L87: 0 | M87: 0.4407527013 | N87: 0.2668910271 | O87: 1.651433194 | P87: 62.28454851 | Q87: 1.01 | R87: 1.164965444 | S87: 89.20753248 | T87: 88.8981591 | U87: 0.3093733804 | V87: -0.05660377579 | W87: 0.3659771562
A88: 2013-05-08 | B88: 91.05 | C88: 91.85 | D88: 91.03 | E88: 91.7 | F88: 13638300 | G88: 87.99 | H88: 0.006015878138 | I88: =STDEV(H69:H88)*SQRT(252) -> 0.1757281813 | J88: 0.55 | K88: 0.55 | L88: 0 | M88: 0.4485560798 | N88: 0.2478273823 | O88: 1.809953668 | P88: 64.41222461 | Q88: 0.82 | R88: 1.140325055 | S88: 89.59098902 | T88: 89.10570287 | U88: 0.4852861515 | V88: 0.05177420967 | W88: 0.4335119418
A89: 2013-05-09 | B89: 91.14 | C89: 91.56 | D89: 90.69 | E89: 91.03 | F89: 13771900 | G89: 87.95 | H89: -0.007333256745 | I89: 0.1777105191 | J89: -0.67 | K89: 0 | L89: 0.67 | M89: 0.4165163598 | N89: 0.2779825693 | O89: 1.498354234 | P89: 59.9736504 | Q89: 1.01 | R89: 1.131016123 | S89: 89.81237533 | T89: 89.2482434 | U89: 0.5641319278 | V89: 0.1542457533 | W89: 0.4098861745
A90: 2013-05-10 | B90: 90.87 | C90: 90.95 | D90: 89.79 | E90: 90.14 | F90: 10975400 | G90: 87.09 | H90: -0.009825105255 | I90: 0.1814694167 | J90: -0.89 | K90: 0 | L90: 0.89 | M90: 0.3867651913 | N90: 0.3216981001 | O90: 1.202261347 | P90: 54.59212862 | Q90: 1.24 | R90: 1.138800686 | S90: 89.86277912 | T90: 89.31429944 | U90: 0.5484796792 | V90: 0.2330925385 | W90: 0.3153871407
A91: 2013-05-13 | B91: 89.8 | C91: 90.14 | D91: 89.43 | E91: 90.1 | F91: 9810100 | G91: 87.05 | H91: -0.0004438526482 | I91: 0.1454814466 | J91: -0.04 | K91: 0 | L91: 0.04 | M91: 0.3591391062 | N91: 0.3015768072 | O91: 1.190871107 | P91: 54.35605514 | Q91: 0.71 | R91: 1.108172065 | S91: 89.89927464 | T91: 89.37249948 | U91: =S91 - T91 -> 0.5267751576 | V91: 0.2918290623 | W91: 0.2349460953
A92: 2013-05-14 | B92: 90.15 | C92: 91.19 | D92: 90.02 | E92: 91.11 | F92: 9890300 | G92: 88.03 | H92: 0.01114740311 | I92: 0.1489796332 | J92: 1.01 | K92: 1.01 | L92: 0 | M92: 0.40562917 | N92: 0.2800356067 | O92: 1.448491407 | P92: 59.15852524 | Q92: 1.17 | R92: 1.112588346 | S92: 90.08554008 | T92: =E92*(2/(26+1)) + T91 * (1-(2/(26+1))) -> 89.50120323 | U92: 0.5843368554 | V92: 0.3503306209 | W92: 0.2340062345
A93: 2013-05-15 | B93: 90.64 | C93: 91.32 | D93: 90.41 | E93: 91.24 | F93: 10399400 | G93: 88.15 | H93: 0.00142582969 | I93: 0.1455200156 | J93: 0.13 | K93: 0.13 | L93: 0 | M93: 0.3859413722 | N93: 0.2600330634 | O93: 1.484201152 | P93: 59.74561081 | Q93: 0.91 | R93: 1.09811775 | S93: 90.2631493 | T93: 89.63000299 | U93: 0.6331463127 | V93: 0.4068937593 | W93: 0.2262525534
A94: 2013-05-16 | B94: 90.8 | C94: 91.29 | D94: 90.5 | E94: 90.7 | F94: 10469600 | G94: 87.63 | H94: -0.005936040295 | I94: 0.1482140149 | J94: -0.54 | K94: 0 | L94: 0.54 | M94: 0.3583741313 | N94: 0.2800307017 | O94: 1.279767287 | P94: 56.13587379 | Q94: 0.79 | R94: 1.076109339 | S94: 90.3303571 | T94: 89.70926202 | U94: 0.6210950747 | V94: 0.4497340224 | W94: 0.1713610524
A95: 2013-05-17 | B95: 91.07 | C95: 91.88 | D95: 90.53 | E95: 91.76 | F95: 12721300 | G95: 88.65 | H95: 0.0116191157 | I95: 0.1497389431 | J95: 1.06 | K95: 1.06 | L95: 0 | M95: 0.4084902648 | N95: 0.2600285087 | O95: 1.570944151 | P95: 61.10378361 | Q95: 1.35 | R95: 1.095672958 | S95: 90.55030216 | T95: 89.86116854 | U95: 0.6891336196 | V95: 0.4976139418 | W95: 0.1915196778
A96: 2013-05-20 | B96: 91.61 | C96: 92.69 | D96: 91.46 | E96: 92.52 | F96: 12417700 | G96: 89.39 | H96: 0.008248364542 | I96: 0.1501907606 | J96: 0.76 | K96: 0.76 | L96: 0 | M96: 0.433598103 | N96: 0.2414550438 | O96: 1.79577157 | P96: 64.23169865 | Q96: 1.23 | R96: 1.105267747 | S96: 90.8533326 | T96: 90.05811902 | U96: 0.795213578 | V96: 0.557133869 | W96: 0.2380797089
A97: 2013-05-21 | B97: 92.67 | C97: 93.43 | D97: 92.38 | E97: 92.8 | F97: 12519900 | G97: 89.66 | H97: 0.003021802429 | I97: 0.1443129626 | J97: 0.28 | K97: 0.28 | L97: 0 | M97: 0.4226268099 | N97: 0.224208255 | O97: 1.884974351 | P97: 65.33764678 | Q97: 1.05 | R97: 1.10132005 | S97: 91.15281989 | T97: 90.26122131 | U97: 0.8915985758 | V97: 0.6240268104 | W97: 0.2675717654
A98: 2013-05-22 | B98: 92.83 | C98: 93.5 | D98: 91.81 | E98: 92.19 | F98: 19253300 | G98: 89.07 | H98: -0.006594974982 | I98: 0.1474534282 | J98: -0.61 | K98: 0 | L98: 0.61 | M98: 0.3924391806 | N98: 0.2517648082 | O98: 1.558753122 | P98: 60.91846487 | Q98: 1.69 | R98: 1.143368618 | S98: 91.31238606 | T98: 90.40409381 | U98: 0.9082922513 | V98: 0.6808798986 | W98: 0.2274123527
A99: 2013-05-23 | B99: 91.56 | C99: 92.36 | D99: 91.36 | E99: 91.79 | F99: 15357300 | G99: 88.68 | H99: =LN(E99/E98) -> -0.00434830558 | I99: 0.1354854055 | J99: =E99-E98 -> -0.4 | K99: =IF(J99>0,J99,0) -> 0 | L99: =IF(J99<0,ABS(J99),0) -> 0.4 | M99: 0.3644078106 | N99: 0.2623530362 | O99: 1.388997878 | P99: 58.14144462 | Q99: =MAX(ABS(D99-E98),ABS(C99-E98),ABS(C99-D99)) -> 1 | R99: 1.133128003 | S99: 91.38586513 | T99: 90.50675353 | U99: 0.879111601 | V99: 0.720526239 | W99: =U99 - V99 -> 0.1585853619
A100: 2013-05-24 | B100: 91.38 | C100: 91.77 | D100: 91 | E100: 91.53 | F100: 12771900 | G100: 88.43 | H100: -0.002836571834 | I100: 0.1362493292 | J100: -0.26 | K100: 0 | L100: 0.26 | M100: 0.3383786813 | N100: 0.2621849622 | O100: 1.290610562 | P100: 56.34351746 | Q100: 0.79 | R100: 1.10861886 | S100: 91.40803972 | T100: 90.58254956 | U100: 0.8254901616 | V100: =U100*(2/(9+1)) + V99 * (1-(2/(9+1))) -> 0.7415190236 | W100: 0.08397113802
A101: 2013-05-28 | B101: 92.94 | C101: 93.18 | D101: 91.76 | E101: 92.38 | F101: 15197800 | G101: 89.25 | H101: 0.009243717606 | I101: 0.1386822 | J101: 0.85 | K101: 0.85 | L101: 0 | M101: 0.3749230612 | N101: 0.2434574649 | O101: 1.539994107 | P101: 60.62982992 | Q101: 1.65 | R101: 1.147288941 | S101: 91.55757207 | T101: 90.71569404 | U101: 0.8418780348 | V101: 0.7615908258 | W101: 0.08028720903
A102: 2013-05-29 | B102: 91.76 | C102: 92.42 | D102: 91.59 | E102: 92.08 | F102: 11563200 | G102: 88.96 | H102: -0.003252740589 | I102: 0.1377945563 | J102: -0.3 | K102: 0 | L102: 0.3 | M102: 0.3481428425 | N102: 0.2474962174 | O102: 1.406659246 | P102: 58.44862534 | Q102: 0.83 | R102: 1.124625445 | S102: 91.6379456 | T102: 90.81675374 | U102: 0.8211918611 | V102: 0.7735110329 | W102: 0.04768082821
A103: 2013-05-30 | B103: 91.97 | C103: 92.68 | D103: 91.6 | E103: 92.09 | F103: 9734700 | G103: 88.97 | H103: 0.0001085953196 | I103: 0.1195990267 | J103: 0.01 | K103: 0.01 | L103: 0 | M103: 0.3239897823 | N103: 0.2298179161 | O103: 1.409767297 | P103: 58.50221715 | Q103: 1.08 | R103: 1.121437914 | S103: 91.70749243 | T103: 90.91106828 | U103: 0.7964241539 | V103: 0.7780936571 | W103: 0.01833049681
A104: 2013-05-31 | B104: 91.95 | C104: 92.37 | D104: 90.46 | E104: 90.47 | F104: 17917400 | G104: 87.41 | H104: -0.0177480557 | I104: 0.1333508741 | J104: -1.62 | K104: 0 | L104: 1.62 | M104: 0.300847655 | N104: 0.3291166364 | O104: 0.9141064952 | P104: 47.75630288 | Q104: 1.91 | R104: 1.177763777 | S104: 91.51710898 | T104: 90.87839655 | U104: 0.6387124271 | V104: 0.7502174111 | W104: -0.111504984
A105: 2013-06-03 | B105: 90.53 | C105: 91.51 | D105: 90.48 | E105: 91.46 | F105: 14177500 | G105: 88.36 | H105: 0.01088341419 | I105: 0.1274936915 | J105: 0.99 | K105: 0.99 | L105: 0 | M105: 0.3500728225 | N105: 0.3056083052 | O105: 1.145495121 | P105: 53.39071199 | Q105: 1.04 | R105: 1.167923507 | S105: 91.50832298 | T105: 90.92147829 | U105: 0.5868446933 | V105: 0.7175428675 | W105: -0.1306981742
A106: 2013-06-04 | B106: 91.18 | C106: 91.49 | D106: 90.22 | E106: 90.79 | F106: 12481300 | G106: 87.72 | H106: -0.007352570846 | I106: 0.1289380437 | J106: -0.67 | K106: 0 | L106: 0.67 | M106: 0.3250676209 | N106: 0.3316362834 | O106: 0.9801931729 | P106: 49.49987639 | Q106: 1.27 | R106: 1.175214685 | S106: 91.39781176 | T106: 90.91173916 | U106: 0.4860725976 | V106: 0.6712488135 | W106: -0.1851762159
A107: 2013-06-05 | B107: 90.68 | C107: 91.12 | D107: 89.61 | E107: 89.65 | F107: 12888000 | G107: 86.62 | H107: -0.01263594733 | I107: 0.1343195855 | J107: -1.14 | K107: 0 | L107: 1.14 | M107: 0.3018485051 | N107: 0.3893765489 | O107: 0.7752097706 | P107: 43.66862911 | Q107: 1.51 | R107: 1.199127922 | S107: 91.12891764 | T107: 90.818277 | U107: 0.3106406412 | V107: 0.5991271791 | W107: -0.2884865378
A108: 2013-06-06 | B108: 89.45 | C108: 90.23 | D108: 89 | E108: 90.23 | F108: 15393300 | G108: 87.18 | H108: 0.006448765955 | I108: 0.1346206485 | J108: 0.58 | K108: 0.58 | L108: 0 | M108: 0.3217164691 | N108: 0.3615639383 | O108: 0.8897913619 | P108: 47.08410568 | Q108: 1.23 | R108: 1.20133307 | S108: 90.99062262 | T108: 90.77470092 | U108: 0.2159216937 | V108: 0.522486082 | W108: -0.3065643883
A109: 2013-06-07 | B109: 90.89 | C109: 91.5 | D109: 90.49 | E109: 91.45 | F109: 12504700 | G109: 88.35 | H109: 0.01343040883 | I109: 0.1412832682 | J109: 1.22 | K109: 1.22 | L109: 0 | M109: 0.3858795784 | N109: 0.3357379427 | O109: 1.14934754 | P109: 53.47425293 | Q109: 1.27 | R109: 1.206237851 | S109: 91.06129606 | T109: 90.82472308 | U109: 0.2365729834 | V109: 0.4653034623 | W109: -0.2287304789
A110: 2013-06-10 | B110: 91.93 | C110: 91.94 | D110: 90.87 | E110: 91.12 | F110: 10372300 | G110: 88.04 | H110: -0.003615055698 | I110: 0.137078356 | J110: -0.33 | K110: 0 | L110: 0.33 | M110: 0.3583167514 | N110: 0.3353280896 | O110: 1.068555729 | P110: 51.65709167 | Q110: 1.07 | R110: 1.196506576 | S110: =E110*(2/(12+1)) + S109 * (1-(2/(12+1))) -> 91.07032744 | T110: 90.84659544 | U110: 0.223731994 | V110: 0.4169891686 | W110: -0.1932571747
A111: 2013-06-11 | B111: 90.38 | C111: 91.04 | D111: 90.23 | E111: 90.46 | F111: 10739400 | G111: 87.4 | H111: -0.007269555089 | I111: 0.1398419461 | J111: -0.66 | K111: 0 | L111: 0.66 | M111: 0.3327226977 | N111: 0.3585189404 | O111: 0.9280477549 | P111: 48.13406476 | Q111: 0.89 | R111: 1.174613249 | S111: 90.97643091 | T111: 90.81795874 | U111: 0.1584721647 | V111: 0.3652857678 | W111: -0.2068136031
A112: 2013-06-12 | B112: 91.13 | C112: 91.32 | D112: 89.59 | E112: 89.74 | F112: 10864500 | G112: 86.7 | H112: -0.007991163502 | I112: 0.1364291487 | J112: -0.72 | K112: 0 | L112: 0.72 | M112: 0.3089567907 | N112: 0.3843390161 | O112: =M112/N112 -> 0.8038652799 | P112: =IF(N112=0,100,100-(100/(1+O112))) -> 44.56348758 | Q112: 1.73 | R112: =(R111*13+Q112)/14 -> 1.214283731 | S112: 90.78621077 | T112: 90.73810995 | U112: 0.04810082084 | V112: 0.3018487784 | W112: -0.2537479576
A113: 2013-06-13 | B113: 89.63 | C113: 91.71 | D113: 89.61 | E113: 91.33 | F113: 13501300 | G113: 88.24 | H113: 0.01756272016 | I113: 0.151091174 | J113: 1.59 | K113: 1.59 | L113: 0 | M113: =(M112*13+K113 )/14 -> 0.4004598771 | N113: =(N112*13+L113 )/14 -> 0.3568862292 | O113: 1.122093946 | P113: 52.87673281 | Q113: 2.1 | R113: 1.277549179 | S113: 90.86987065 | T113: 90.78195365 | U113: 0.08791699505 | V113: 0.2590624218 | W113: -0.1711454267
A114: 2013-06-14 | B114: 91.16 | C114: 91.3 | D114: 90.29 | E114: 90.58 | F114: 12158400 | G114: 87.51 | H114: -0.008245882576 | I114: 0.1525204895 | J114: -0.75 | K114: 0 | L114: 0.75 | M114: 0.3718556002 | N114: 0.3849657843 | O114: 0.9659445472 | P114: 49.13386538 | Q114: 1.04 | R114: 1.260581381 | S114: 90.82527517 | T114: 90.76699412 | U114: 0.05828104044 | V114: 0.2189061455 | W114: -0.1606251051
A115: 2013-06-17 | B115: 90.97 | C115: 91.77 | D115: 90.77 | E115: 91.51 | F115: 12026400 | G115: 88.41 | H115: 0.0102148178 | I115: 0.1511689776 | J115: 0.93 | K115: 0.93 | L115: 0 | M115: 0.4117230573 | N115: 0.3574682282 | O115: 1.151775248 | P115: 53.52674491 | Q115: 1.19 | R115: 1.255539853 | S115: 90.93061745 | T115: 90.8220316 | U115: 0.1085858505 | V115: 0.1968420865 | W115: -0.08825623602
A116: 2013-06-18 | B116: 91.36 | C116: 92.06 | D116: 91.26 | E116: 91.93 | F116: 10678200 | G116: 88.82 | H116: 0.004579161948 | I116: 0.1490154368 | J116: 0.42 | K116: 0.42 | L116: 0 | M116: 0.4123142675 | N116: 0.3319347834 | O116: 1.242154448 | P116: 55.40003941 | Q116: 0.8 | R116: 1.223001292 | S116: 91.08436861 | T116: 90.90410333 | U116: 0.1802652788 | V116: 0.193526725 | W116: -0.01326144613
A117: 2013-06-19 | B117: 91.79 | C117: 92.27 | D117: 91 | E117: 91 | F117: 14189500 | G117: 87.92 | H117: -0.01016791136 | I117: 0.1524087851 | J117: -0.93 | K117: 0 | L117: 0.93 | M117: 0.3828632484 | N117: 0.3746537274 | O117: 1.02191229 | P117: 50.54187043 | Q117: 1.27 | R117: 1.226358343 | S117: 91.07138882 | T117: 90.91120679 | U117: 0.1601820358 | V117: 0.1868577871 | W117: -0.02667575136
A118: 2013-06-20 | B118: 90.24 | C118: 90.52 | D118: 88.79 | E118: 89.05 | F118: 21077700 | G118: 86.04 | H118: -0.02166149678 | I118: 0.1683240118 | J118: -1.95 | K118: 0 | L118: 1.95 | M118: 0.3555158735 | N118: 0.4871784612 | O118: 0.7297446456 | P118: 42.18799853 | Q118: 2.21 | R118: 1.296618461 | S118: 90.76040593 | T118: 90.77333962 | U118: -0.01293369069 | V118: 0.1468994916 | W118: -0.1598331822
A119: 2013-06-21 | B119: 89.76 | C119: 90.14 | D119: 88.85 | E119: 89.48 | F119: 25493800 | G119: 86.45 | H119: 0.004817126886 | I119: 0.1695745092 | J119: 0.43 | K119: 0.43 | L119: 0 | M119: 0.3608361683 | N119: 0.4523799997 | O119: 0.7976395255 | P119: 44.37149463 | Q119: 1.29 | R119: 1.296145714 | S119: 90.5634204 | T119: 90.67753668 | U119: -0.1141162833 | V119: 0.09469633658 | W119: -0.2088126199
A120: 2013-06-24 | B120: 88.95 | C120: 89.5 | D120: 88.02 | E120: 88.48 | F120: 17653000 | G120: 85.49 | H120: -0.01123859885 | I120: 0.1731853504 | J120: -1 | K120: 0 | L120: 1 | M120: 0.3350621562 | N120: 0.491495714 | O120: 0.6817193858 | P120: 40.53704747 | Q120: 1.48 | R120: 1.309278163 | S120: 90.24289418 | T120: 90.51475619 | U120: -0.2718620037 | V120: 0.02138466853 | W120: -0.2932466722
A121: 2013-06-25 | B121: 89.58 | C121: 89.62 | D121: 88.48 | E121: 89.11 | F121: 15790100 | G121: 86.09 | H121: 0.007095023851 | I121: 0.1715455998 | J121: 0.63 | K121: 0.63 | L121: 0 | M121: 0.3561291451 | N121: 0.4563888773 | O121: 0.78031951 | P121: 43.83030718 | Q121: 1.14 | R121: 1.297186866 | S121: 90.06860277 | T121: 90.41070017 | U121: -0.3420974027 | V121: -0.05131174573 | W121: -0.290785657
A122: 2013-06-26 | B122: 89.42 | C122: 89.97 | D122: 88.73 | E122: 89.8 | F122: 14446000 | G122: 86.76 | H122: 0.007713413684 | I122: 0.1747028949 | J122: 0.69 | K122: 0.69 | L122: 0 | M122: 0.3799770633 | N122: 0.4237896717 | O122: 0.8966170925 | P122: 47.27454456 | Q122: 1.24 | R122: 1.29310209 | S122: 90.02727927 | T122: 90.36546312 | U122: -0.3381838561 | V122: -0.1086861678 | W122: -0.2294976883
A123: 2013-06-27 | B123: 90.24 | C123: 90.67 | D123: 90.03 | E123: 90.04 | F123: 12348000 | G123: 86.99 | H123: 0.00266904073 | I123: 0.1752033888 | J123: 0.24 | K123: 0.24 | L123: 0 | M123: 0.3699787016 | N123: 0.3935189809 | O123: 0.9401800665 | P123: 48.45839222 | Q123: 0.87 | R123: 1.262880512 | S123: 90.0292363 | T123: 90.34135474 | U123: =S123 - T123 -> -0.3121184409 | V123: -0.1493726224 | W123: -0.1627458185
A124: 2013-06-28 | B124: 89.85 | C124: 90.75 | D124: 89.56 | E124: 90.35 | F124: 22984200 | G124: 87.29 | H124: 0.003437001 | I124: 0.1643472556 | J124: 0.31 | K124: 0.31 | L124: 0 | M124: 0.3656945086 | N124: 0.3654104823 | O124: 1.00077728 | P124: 50.01942446 | Q124: 1.19 | R124: 1.257674761 | S124: 90.07858456 | T124: =E124*(2/(26+1)) + T123 * (1-(2/(26+1))) -> 90.34199513 | U124: -0.2634105693 | V124: -0.1721802118 | W124: -0.09123035746
A125: 2013-07-01 | B125: 90.39 | C125: 91.13 | D125: 89.96 | E125: 90.3 | F125: 13182200 | G125: 87.24 | H125: -0.0005535566153 | I125: 0.1591735001 | J125: -0.05 | K125: 0 | L125: 0.05 | M125: 0.3395734723 | N125: 0.3428811621 | O125: 0.9903532473 | P125: 49.7576623 | Q125: 1.17 | R125: 1.251412278 | S125: 90.11264848 | T125: 90.33888438 | U125: -0.2262359055 | V125: -0.1829913505 | W125: -0.04324455496
A126: 2013-07-02 | B126: 90.37 | C126: 91.1 | D126: 90.12 | E126: 90.64 | F126: 12320700 | G126: 87.57 | H126: 0.003758156297 | I126: 0.157837736 | J126: 0.34 | K126: 0.34 | L126: 0 | M126: 0.3396039386 | N126: 0.3183896505 | O126: 1.066629955 | P126: 51.61204367 | Q126: 0.98 | R126: 1.232025687 | S126: 90.19377948 | T126: 90.36118924 | U126: -0.1674097626 | V126: -0.1798750329 | W126: 0.01246527036
A127: 2013-07-03 | B127: 90.63 | C127: 90.87 | D127: 90.14 | E127: 90.69 | F127: 5674000 | G127: 87.62 | H127: 0.0005514807397 | I127: 0.1507072878 | J127: 0.05 | K127: 0.05 | L127: 0 | M127: 0.318917943 | N127: 0.2956475326 | O127: 1.078709976 | P127: 51.89324094 | Q127: 0.73 | R127: 1.196166709 | S127: 90.2701211 | T127: 90.3855456 | U127: -0.1154244966 | V127: -0.1669849257 | W127: 0.05156042904
A128: 2013-07-05 | B128: 91.1 | C128: 91.61 | D128: 90.57 | E128: 91.57 | F128: 8917900 | G128: 88.47 | H128: 0.00965660966 | I128: 0.1527809274 | J128: 0.88 | K128: 0.88 | L128: 0 | M128: 0.3589952328 | N128: 0.2745298517 | O128: 1.307672847 | P128: 56.66630123 | Q128: 1.04 | R128: 1.185011944 | S128: 90.47010247 | T128: 90.47328296 | U128: -0.003180490592 | V128: -0.1342240387 | W128: 0.1310435481
A129: 2013-07-08 | B129: 91.96 | C129: 92.53 | D129: 91.9 | E129: 92.25 | F129: 12086700 | G129: 89.13 | H129: 0.007398575801 | I129: 0.1475448302 | J129: 0.68 | K129: 0.68 | L129: 0 | M129: 0.3819241447 | N129: 0.2549205766 | O129: 1.498208382 | P129: 59.97131356 | Q129: 0.96 | R129: 1.168939662 | S129: 90.74393286 | T129: 90.60489163 | U129: 0.1390412291 | V129: -0.0795709851 | W129: 0.2186122142
A130: 2013-07-09 | B130: 92.64 | C130: 93.44 | D130: 92.25 | E130: 93.34 | F130: 12940000 | G130: 90.18 | H130: 0.0117464576 | I130: 0.1519613091 | J130: 1.09 | K130: 1.09 | L130: 0 | M130: 0.4325009915 | N130: 0.236711964 | O130: 1.827119273 | P130: 64.62830523 | Q130: 1.19 | R130: 1.170443972 | S130: 91.1433278 | T130: 90.80749225 | U130: 0.3358355539 | V130: 0.003510322708 | W130: 0.3323252312
A131: 2013-07-10 | B131: 93.28 | C131: 93.39 | D131: 92.38 | E131: 92.82 | F131: 12430000 | G131: 89.68 | H131: =LN(E131/E130) -> -0.005586606709 | I131: 0.1508299234 | J131: =E131-E130 -> -0.52 | K131: =IF(J131>0,J131,0) -> 0 | L131: =IF(J131<0,ABS(J131),0) -> 0.52 | M131: 0.4016080635 | N131: 0.2569468237 | O131: 1.563000693 | P131: 60.98323334 | Q131: =MAX(ABS(D131-E130),ABS(C131-E130),ABS(C131-D131)) -> 1.01 | R131: 1.158983689 | S131: 91.40127737 | T131: 90.9565669 | U131: 0.4447104745 | V131: 0.09175035306 | W131: =U131 - V131 -> 0.3529601214
A132: 2013-07-11 | B132: 93.8 | C132: 93.81 | D132: 93.04 | E132: 93.27 | F132: 16184700 | G132: 90.11 | H132: 0.004836378926 | I132: 0.1471925338 | J132: 0.45 | K132: 0.45 | L132: 0 | M132: 0.4050646304 | N132: 0.2385934792 | O132: 1.69771878 | P132: 62.93164405 | Q132: 0.99 | R132: 1.146913425 | S132: 91.68877316 | T132: 91.12793231 | U132: 0.5608408484 | V132: =U132*(2/(9+1)) + V131 * (1-(2/(9+1))) -> 0.1855684521 | W132: 0.3752723963
A133: 2013-07-12 | B133: 93.25 | C133: 93.45 | D133: 92.72 | E133: 93.4 | F133: 11370300 | G133: 90.24 | H133: 0.001392832496 | I133: 0.1351088899 | J133: 0.13 | K133: 0.13 | L133: 0 | M133: 0.3854171568 | N133: 0.2215510878 | O133: 1.739631074 | P133: 63.49873494 | Q133: 0.73 | R133: 1.117133895 | S133: 91.95203883 | T133: 91.29623362 | U133: 0.6558052058 | V133: 0.2796158029 | W133: 0.3761894029
A134: 2013-07-15 | B134: 93.19 | C134: 93.5 | D134: 93.09 | E134: 93.25 | F134: 8256200 | G134: 90.09 | H134: -0.001607286711 | I134: 0.1309972972 | J134: -0.15 | K134: 0 | L134: 0.15 | M134: 0.3578873599 | N134: 0.2164402958 | O134: 1.653515389 | P134: 62.31414356 | Q134: 0.41 | R134: 1.066624331 | S134: 92.15172516 | T134: 91.44095706 | U134: 0.7107681045 | V134: 0.3658462632 | W134: 0.3449218413
A135: 2013-07-16 | B135: 93.19 | C135: 93.47 | D135: 92.77 | E135: 93.3 | F135: 11413500 | G135: 90.14 | H135: 0.0005360493294 | I135: 0.1268502822 | J135: 0.05 | K135: 0.05 | L135: 0 | M135: 0.3358954056 | N135: 0.2009802747 | O135: 1.671285434 | P135: 62.56483912 | Q135: 0.7 | R135: 1.040436879 | S135: 92.32838283 | T135: 91.57866394 | U135: 0.7497188872 | V135: 0.442620788 | W135: 0.3070980992
A136: 2013-07-17 | B136: 93.56 | C136: 93.74 | D136: 93.14 | E136: 93.46 | F136: 9393300 | G136: 90.3 | H136: 0.001713429419 | I136: 0.1261745014 | J136: 0.16 | K136: 0.16 | L136: 0 | M136: 0.3233314481 | N136: 0.1866245408 | O136: 1.732523744 | P136: 63.40379467 | Q136: 0.6 | R136: 1.008977102 | S136: 92.50247778 | T136: 91.71802217 | U136: 0.78445561 | V136: 0.5109877524 | W136: 0.2734678576
A137: 2013-07-18 | B137: 93.8 | C137: 94.84 | D137: 93.71 | E137: 94.38 | F137: 10555400 | G137: 91.19 | H137: 0.009795649026 | I137: 0.1229637793 | J137: 0.92 | K137: 0.92 | L137: 0 | M137: 0.3659506304 | N137: 0.1732942164 | O137: 2.1117302 | P137: 67.86353779 | Q137: 1.38 | R137: 1.035478737 | S137: 92.79132735 | T137: 91.91520571 | U137: 0.8761216394 | V137: 0.5840145298 | W137: 0.2921071096
A138: 2013-07-19 | B138: 94.69 | C138: 95.25 | D138: 94.41 | E138: 95.17 | F138: 14431700 | G138: 91.95 | H138: 0.008335579786 | I138: 0.08815101661 | J138: 0.79 | K138: 0.79 | L138: 0 | M138: 0.3962398711 | N138: 0.1609160581 | O138: 2.462401054 | P138: 71.11830824 | Q138: 0.87 | R138: 1.023658827 | S138: 93.15727699 | T138: 92.15630159 | U138: 1.000975404 | V138: 0.6674067047 | W138: 0.3335686997
A139: 2013-07-22 | B139: 94.87 | C139: 95.2 | D139: 94.78 | E139: 94.83 | F139: 9530400 | G139: 91.62 | H139: -0.003578951189 | I139: 0.09124766015 | J139: -0.34 | K139: 0 | L139: 0.34 | M139: 0.3679370231 | N139: 0.1737077682 | O139: 2.11813799 | P139: 67.92957839 | Q139: 0.42 | R139: 0.9805403397 | S139: 93.41461899 | T139: 92.35435332 | U139: 1.060265672 | V139: 0.7459784981 | W139: 0.3142871735
A140: 2013-07-23 | B140: 94.86 | C140: 95.49 | D140: 94.84 | E140: 95.2 | F140: 7377400 | G140: 91.98 | H140: 0.003894126902 | I140: 0.07439527554 | J140: 0.37 | K140: 0.37 | L140: 0 | M140: 0.3680843786 | N140: 0.1613000705 | O140: 2.281985231 | P140: 69.5306368 | Q140: 0.66 | R140: 0.9576446011 | S140: 93.68929299 | T140: 92.56514196 | U140: 1.12415103 | V140: 0.8216130045 | W140: 0.3025380255
A141: 2013-07-24 | B141: 95.31 | C141: 95.31 | D141: 94.42 | E141: 94.99 | F141: 8222800 | G141: 91.77 | H141: -0.002208318895 | I141: 0.07601019459 | J141: -0.21 | K141: 0 | L141: 0.21 | M141: 0.3417926373 | N141: 0.1647786369 | O141: 2.074253336 | P141: 67.47177637 | Q141: 0.89 | R141: 0.9528128439 | S141: 93.88940176 | T141: 92.74476108 | U141: 1.144640686 | V141: 0.8862185409 | W141: 0.2584221456
A142: 2013-07-25 | B142: 94.69 | C142: 95.31 | D142: 94.42 | E142: 94.97 | F142: 10059800 | G142: 91.76 | H142: -0.0002105706472 | I142: 0.07495968535 | J142: -0.02 | K142: 0 | L142: 0.02 | M142: 0.3173788775 | N142: 0.1544373057 | O142: 2.055066139 | P142: 67.26748441 | Q142: 0.89 | R142: 0.9483262122 | S142: =E142*(2/(12+1)) + S141 * (1-(2/(12+1))) -> 94.05564765 | T142: 92.90959359 | U142: 1.146054056 | V142: 0.9381856439 | W142: 0.2078684123
A143: 2013-07-26 | B143: 94.77 | C143: 94.86 | D143: 93.84 | E143: 94.79 | F143: 9721000 | G143: 91.58 | H143: -0.00189713379 | I143: 0.07679440862 | J143: -0.18 | K143: 0 | L143: 0.18 | M143: 0.2947089577 | N143: 0.1562632124 | O143: 1.885977852 | P143: 65.34969943 | Q143: 1.13 | R143: 0.9613029113 | S143: 94.16862493 | T143: 93.04888295 | U143: 1.119741978 | V143: 0.9744969107 | W143: 0.1452450671
A144: 2013-07-29 | B144: 94.51 | C144: 94.52 | D144: 93.61 | E144: 94.03 | F144: 8844700 | G144: 90.85 | H144: -0.008050038176 | I144: 0.08541630567 | J144: -0.76 | K144: 0 | L144: 0.76 | M144: 0.2736583178 | N144: 0.1993872687 | O144: =M144/N144 -> 1.372496447 | P144: =IF(N144=0,100,100-(100/(1+O144))) -> 57.85030568 | Q144: 1.18 | R144: =(R143*13+Q144)/14 -> 0.976924132 | S144: 94.14729802 | T144: 93.12155829 | U144: 1.025739729 | V144: 0.9847454743 | W144: 0.04099425424
A145: 2013-07-30 | B145: 94.22 | C145: 94.33 | D145: 93.46 | E145: 93.81 | F145: 10470700 | G145: 90.63 | H145: -0.002342420151 | I145: 0.08635539321 | J145: -0.22 | K145: 0 | L145: 0.22 | M145: =(M144*13+K145 )/14 -> 0.2541112951 | N145: =(N144*13+L145 )/14 -> 0.2008596066 | O145: 1.265118952 | P145: 55.85220816 | Q145: 0.87 | R145: 0.969286694 | S145: 94.09540602 | T145: 93.17255397 | U145: 0.9228520434 | V145: 0.9723667881 | W145: -0.04951474466
A146: 2013-07-31 | B146: 93.93 | C146: 94.6 | D146: 93.38 | E146: 93.75 | F146: 14400800 | G146: 90.58 | H146: -0.0006397952873 | I146: 0.08651571694 | J146: -0.06 | K146: 0 | L146: 0.06 | M146: 0.2359604883 | N146: 0.1907982062 | O146: 1.236701817 | P146: 55.29131366 | Q146: 1.22 | R146: 0.9871947872 | S146: 94.04226663 | T146: 93.21532775 | U146: 0.8269388766 | V146: 0.9432812058 | W146: -0.1163423292
A147: 2013-08-01 | B147: 92.69 | C147: 93.1 | D147: 91.25 | E147: 92.73 | F147: 23117700 | G147: 89.59 | H147: -0.01093962004 | I147: 0.09744129584 | J147: -1.02 | K147: 0 | L147: 1.02 | M147: 0.2191061677 | N147: 0.2500269057 | O147: 0.8763303577 | P147: 46.70448112 | Q147: 2.5 | R147: 1.095252302 | S147: 93.84037945 | T147: 93.17937755 | U147: 0.6610019068 | V147: 0.886825346 | W147: -0.2258234392
A148: 2013-08-02 | B148: 92.46 | C148: 92.53 | D148: 91.34 | E148: 91.95 | F148: 14408600 | G148: 88.84 | H148: -0.008447093762 | I148: 0.0975764774 | J148: -0.78 | K148: 0 | L148: 0.78 | M148: 0.2034557272 | N148: 0.2878821267 | O148: 0.7067327503 | P148: 41.40851871 | Q148: 1.39 | R148: 1.116305709 | S148: 93.54955185 | T148: 93.08831254 | U148: 0.4612393019 | V148: 0.8017081372 | W148: -0.3404688353
A149: 2013-08-05 | B149: 91.42 | C149: 91.76 | D149: 91.01 | E149: 91.59 | F149: 12625900 | G149: 88.49 | H149: -0.003922855635 | I149: 0.09474410754 | J149: -0.36 | K149: 0 | L149: 0.36 | M149: 0.1889231752 | N149: 0.2930334034 | O149: 0.6447154933 | P149: 39.1992108 | Q149: 0.94 | R149: 1.103712444 | S149: 93.24808233 | T149: 92.97732643 | U149: 0.2707559015 | V149: 0.69551769 | W149: -0.4247617886
A150: 2013-08-06 | B150: 91.33 | C150: 91.91 | D150: 91.28 | E150: 91.47 | F150: 11689200 | G150: 88.37 | H150: -0.001311045747 | I150: 0.08325734717 | J150: -0.12 | K150: 0 | L150: 0.12 | M150: 0.1754286627 | N150: 0.2806738746 | O150: 0.6250266897 | P150: 38.46254918 | Q150: 0.63 | R150: 1.069875841 | S150: 92.9745312 | T150: 92.86567262 | U150: 0.1088585832 | V150: 0.5781858687 | W150: -0.4693272855
A151: 2013-08-07 | B151: 91.18 | C151: 91.55 | D151: 91.13 | E151: 91.34 | F151: 8163800 | G151: 88.25 | H151: -0.001422241911 | I151: 0.0815165405 | J151: -0.13 | K151: 0 | L151: 0.13 | M151: 0.162898044 | N151: 0.269911455 | O151: 0.6035240111 | P151: 37.63735416 | Q151: 0.42 | R151: 1.023456138 | S151: 92.72306486 | T151: 92.75265983 | U151: -0.02959496915 | V151: 0.4566297011 | W151: -0.4862246703
A152: 2013-08-08 | B152: 91.93 | C152: 91.97 | D152: 91.28 | E152: 91.78 | F152: 11529500 | G152: 88.67 | H152: 0.00480560121 | I152: =STDEV(H133:H152)*SQRT(252) -> 0.08148836523 | J152: 0.44 | K152: 0.44 | L152: 0 | M152: 0.1826910408 | N152: 0.2506320653 | O152: 0.7289212598 | P152: 42.16046599 | Q152: 0.69 | R152: 0.9996378427 | S152: 92.57797796 | T152: 92.68061096 | U152: -0.1026329948 | V152: 0.3447771619 | W152: -0.4474101567
A153: 2013-08-09 | B153: 91.2 | C153: 91.36 | D153: 90.43 | E153: 90.72 | F153: 9467800 | G153: 88.26 | H153: -0.01161656899 | I153: 0.08952268207 | J153: -1.06 | K153: 0 | L153: 1.06 | M153: 0.1696416808 | N153: 0.3084440607 | O153: 0.5499917242 | P153: 35.4835265 | Q153: 1.35 | R153: 1.024663711 | S153: 92.2921352 | T153: 92.53538052 | U153: -0.243245317 | V153: 0.2271726661 | W153: -0.4704179831
A154: 2013-08-12 | B154: 90.43 | C154: 90.43 | D154: 89.69 | E154: 89.89 | F154: 10133700 | G154: 87.45 | H154: -0.009191139394 | I154: 0.09364559404 | J154: -0.83 | K154: 0 | L154: 0.83 | M154: 0.1575244178 | N154: 0.3456980563 | O154: 0.4556705338 | P154: 31.30313647 | Q154: 1.03 | R154: 1.025044875 | S154: 91.92257594 | T154: 92.3394264 | U154: -0.4168504661 | V154: 0.09836803969 | W154: -0.5152185058
A155: 2013-08-13 | B155: 89.85 | C155: 89.92 | D155: 89.14 | E155: 89.4 | F155: 10892700 | G155: 86.97 | H155: -0.005466018406 | I155: 0.09405280294 | J155: -0.49 | K155: 0 | L155: 0.49 | M155: 0.1462726737 | N155: 0.356005338 | O155: 0.4108721362 | P155: 29.12185489 | Q155: 0.78 | R155: 1.007541669 | S155: 91.53448733 | T155: 92.12169111 | U155: =S155 - T155 -> -0.5872037827 | V155: -0.03874632479 | W155: -0.5484574579
A156: 2013-08-14 | B156: 89.34 | C156: 89.48 | D156: 88.9 | E156: 88.95 | F156: 9797300 | G156: 86.53 | H156: -0.005046268068 | I156: 0.09344309358 | J156: -0.45 | K156: 0 | L156: 0.45 | M156: 0.1358246256 | N156: 0.3627192425 | O156: 0.3744621451 | P156: 27.24426762 | Q156: 0.58 | R156: 0.9770029786 | S156: 91.1368739 | T156: =E156*(2/(26+1)) + T155 * (1-(2/(26+1))) -> 91.88675103 | U156: -0.7498771358 | V156: -0.180972487 | W156: -0.5689046488
A157: 2013-08-15 | B157: 88.66 | C157: 88.87 | D157: 88.06 | E157: 88.16 | F157: 11273400 | G157: 85.76 | H157: -0.008921068707 | I157: 0.08399048724 | J157: -0.79 | K157: 0 | L157: 0.79 | M157: 0.1261228666 | N157: 0.3932392966 | O157: 0.3207280344 | P157: 24.28418463 | Q157: 0.89 | R157: 0.9707884801 | S157: 90.6788933 | T157: 91.6106954 | U157: -0.9318021032 | V157: -0.3311384102 | W157: -0.600663693
A158: 2013-08-16 | B158: 88.01 | C158: 88.49 | D158: 87.65 | E158: 87.91 | F158: 11872500 | G158: 85.52 | H158: -0.002839781542 | I158: 0.07173900142 | J158: -0.25 | K158: 0 | L158: 0.25 | M158: 0.1171140904 | N158: 0.3830079182 | O158: 0.3057745933 | P158: 23.41710391 | Q158: 0.84 | R158: 0.9614464458 | S158: 90.25290971 | T158: 91.33656981 | U158: -1.083660102 | V158: -0.4816427486 | W158: -0.6020173535
A159: 2013-08-19 | B159: 87.82 | C159: 87.87 | D159: 86.78 | E159: 86.92 | F159: 11745600 | G159: 84.56 | H159: -0.01132540847 | I159: 0.07630679391 | J159: -0.99 | K159: 0 | L159: 0.99 | M159: 0.1087487983 | N159: 0.4263644955 | O159: 0.2550606333 | P159: 20.32257459 | Q159: 1.13 | R159: 0.9734859854 | S159: 89.74015437 | T159: 91.0094165 | U159: -1.269262123 | V159: -0.6391666235 | W159: -0.6300954995
A160: 2013-08-20 | B160: 87.13 | C160: 87.87 | D160: 86.83 | E160: 86.83 | F160: 16498800 | G160: 84.47 | H160: -0.001035971316 | I160: 0.07106473916 | J160: -0.09 | K160: 0 | L160: 0.09 | M160: 0.100981027 | N160: 0.4023384601 | O160: 0.2509852698 | P160: 20.0630076 | Q160: 1.04 | R160: 0.9782369865 | S160: 89.29243831 | T160: 90.69983009 | U160: -1.407391773 | V160: -0.7928116534 | W160: -0.6145801197
A161: 2013-08-21 | B161: 86.95 | C161: 87.35 | D161: 86.39 | E161: 86.42 | F161: 12766900 | G161: 84.07 | H161: -0.004733053569 | I161: 0.07049996274 | J161: -0.41 | K161: 0 | L161: 0.41 | M161: 0.09376809646 | N161: 0.402885713 | O161: 0.2327411805 | P161: 18.87997126 | Q161: 0.96 | R161: 0.9769343446 | S161: 88.85052473 | T161: 90.38280564 | U161: -1.532280909 | V161: -0.9407055046 | W161: -0.5915754045
A162: 2013-08-22 | B162: 86.58 | C162: 87.42 | D162: 86.45 | E162: 86.98 | F162: 10199900 | G162: 84.62 | H162: 0.006459076666 | I162: 0.07956071948 | J162: 0.56 | K162: 0.56 | L162: 0 | M162: 0.1270703753 | N162: 0.374108162 | O162: 0.3396621303 | P162: 25.35431305 | Q162: 1 | R162: 0.9785818914 | S162: 88.56275169 | T162: 90.13074596 | U162: -1.567994267 | V162: -1.066163257 | W162: -0.5018310102
A163: 2013-08-23 | B163: 87.15 | C163: 87.69 | D163: 86.76 | E163: 87.52 | F163: 9206400 | G163: 85.14 | H163: =LN(E163/E162) -> 0.006189131504 | I163: 0.08768921438 | J163: =E163-E162 -> 0.54 | K163: =IF(J163>0,J163,0) -> 0.54 | L163: =IF(J163<0,ABS(J163),0) -> 0 | M163: 0.1565653485 | N163: 0.3473861505 | O163: 0.4506954243 | P163: 31.06754297 | Q163: =MAX(ABS(D163-E162),ABS(C163-E162),ABS(C163-D163)) -> 0.93 | R163: 0.9751117563 | S163: 88.40232836 | T163: 89.93735737 | U163: -1.535029015 | V163: -1.159936409 | W163: =U163 - V163 -> -0.3750926064
A164: 2013-08-26 | B164: 87.5 | C164: 87.7 | D164: 86.82 | E164: 87.09 | F164: 10654700 | G164: 84.72 | H164: -0.004925271969 | I164: 0.08646318287 | J164: -0.43 | K164: 0 | L164: 0.43 | M164: 0.1453821093 | N164: 0.3532871397 | O164: 0.4115125997 | P164: 29.15401533 | Q164: 0.88 | R164: 0.9683180594 | S164: 88.20043169 | T164: 89.72644201 | U164: -1.526010324 | V164: =U164*(2/(9+1)) + V163 * (1-(2/(9+1))) -> -1.233151192 | W164: -0.2928591325
A165: 2013-08-27 | B165: 86.62 | C165: 87.49 | D165: 86.58 | E165: 86.82 | F165: 13960200 | G165: 84.46 | H165: -0.003105056833 | I165: 0.08633101438 | J165: -0.27 | K165: 0 | L165: 0.27 | M165: 0.1349976729 | N165: 0.3473380583 | O165: 0.3886636367 | P165: 27.98832103 | Q165: 0.91 | R165: 0.9641524837 | S165: 87.98805758 | T165: 89.51115001 | U165: -1.523092429 | V165: -1.291139439 | W165: -0.2319529898
A166: 2013-08-28 | B166: 87.28 | C166: 88.99 | D166: 87.28 | E166: 88.84 | F166: 17738800 | G166: 86.43 | H166: 0.02299998915 | I166: 0.1285343761 | J166: 2.02 | K166: 2.02 | L166: 0 | M166: 0.2696406963 | N166: 0.322528197 | O166: 0.8360220867 | P166: 45.53442427 | Q166: 2.17 | R166: 1.050284449 | S166: 88.11912564 | T166: 89.46143519 | U166: -1.342309549 | V166: -1.301373461 | W166: -0.04093608777
A167: 2013-08-29 | B167: 88.63 | C167: 88.63 | D167: 87.23 | E167: 87.27 | F167: 11407800 | G167: 84.9 | H167: -0.01783023785 | I167: 0.136481787 | J167: -1.57 | K167: 0 | L167: 1.57 | M167: 0.2503806466 | N167: 0.4116333258 | O167: 0.60826136 | P167: 37.82105167 | Q167: 1.61 | R167: 1.090264131 | S167: 87.98849093 | T167: 89.29910666 | U167: -1.310615731 | V167: -1.303221915 | W167: -0.007393815572
A168: 2013-08-30 | B168: 87.39 | C168: 87.55 | D168: 86.79 | E168: 87.16 | F168: 12480400 | G168: 84.79 | H168: -0.001261251099 | I168: 0.1350782561 | J168: -0.11 | K168: 0 | L168: 0.11 | M168: 0.2324963147 | N168: 0.3900880882 | O168: 0.5960097775 | P168: 37.34374224 | Q168: 0.76 | R168: 1.066673836 | S168: 87.86103079 | T168: 89.14065432 | U168: -1.279623529 | V168: -1.298502238 | W168: 0.01887870927
